bitfinex-derivatives/quotes_ETHF0:USTF0_20250317
["timestamp","ask_amount","ask_price","bid_price","bid_amount"]
[1742184758914,5.4844,1908.5,1908.4,40.8]
[1742184759106,5.4844,1908.5,1908.4,41.84808]
[1742184759610,2.0454,1908.5,1908.4,41.84808]
[1742184759912,0.6627,1908.7,1908.6,1.04797]
[1742184760215,4.7602,1908.7,1908.6,1.04797]
[1742184760416,31.07765649,1908.8,1908.7,1.04791]
[1742184760611,35.83985649,1908.8,1908.7,1.04791]
[1742184760808,32.40385649,1908.8,1908.7,2.37271]
[1742184761115,35.83885649,1908.8,1908.7,2.37271]
[1742184762615,35.83885649,1908.8,1908.7,1.3248]
[1742184763118,30.39885649,1908.8,1908.7,1.3248]
[1742184763413,33.83185649,1908.8,1908.7,4.5174]
[1742184763610,30.39885649,1908.8,1908.7,5.56531]
[1742184763819,30.39885649,1908.8,1908.7,11.56531]
[1742184764019,0.00785649,1908.8,1908.7,11.56531]
[1742184765611,0.00785649,1908.8,1908.7,10.5174]
[1742184765811,0.00785649,1908.8,1908.7,8.0174]
[1742184766013,0.00785649,1908.8,1908.7,10.5174]
[1742184766316,0.00785649,1908.8,1908.7,8.0174]
[1742184766519,0.00785649,1908.8,1908.7,10.5174]
[1742184767623,0.00785649,1908.8,1908.7,11.56531]
[1742184768517,0.00785649,1908.8,1908.7,9.06531]
[1742184768723,0.00785649,1908.8,1908.7,8.0174]
[1742184770113,0.00785649,1908.8,1908.7,7.3248]
[1742184770623,1.33045649,1908.8,1908.7,7.3248]
[1742184771916,1.33045649,1908.8,1908.7,8.37271]
[1742184775720,1.33045649,1908.8,1908.7,2.37271]
[1742184777727,1.33045649,1908.8,1908.7,1.3248]
[1742184779625,1.33045649,1908.8,1908.7,2.37271]
[1742184781129,1.33045649,1908.8,1908.7,1.04791]
[1742184782033,1.33045649,1908.8,1908.6,3.2078]
[1742184782034,1.04791,1908.7,1908.6,3.2078]
[1742184782226,4.46896,1908.7,1908.5,1.048]
[1742184782426,3.16248,1908.6,1908.4,41.84806]
[1742184782623,1.4432,1908.5,1908.4,40.8]
[1742184782928,1.4432,1908.5,1908.4,41.84808]
[1742184785326,2.1617,1908.5,1908.4,45.05588]
[1742184785634,2.1617,1908.5,1908.4,41.84808]
[1742184785635,5.5827,1908.5,1908.4,41.84808]
[1742184785833,5.5827,1908.5,1908.4,45.05588]
[1742184786335,5.5827,1908.5,1908.4,41.84808]
[1742184789141,5.5827,1908.5,1908.4,43.25678]
[1742184789846,2.1617,1908.5,1908.4,43.25678]
[1742184790038,5.5787,1908.5,1908.4,43.25678]
[1742184792734,5.5787,1908.5,1908.4,46.46458]
[1742184796336,5.5707,1908.5,1908.4,46.46458]
[1742184797045,4.8522,1908.5,1908.4,46.46458]
[1742184798239,1.4432,1908.5,1908.4,46.46458]
[1742184802053,1.4432,1908.5,1908.4,45.05588]
[1742184802647,1.4432,1908.5,1908.4,44.0078]
[1742184802854,2.49122,1908.5,1908.4,44.0078]
[1742184803653,1.04814,1908.3,1908.1,4.25599]
[1742184803954,4.778,1908.2,1908.1,4.25599]
[1742184804549,4.778,1908.2,1908.1,45.05599]
[1742184808450,6.1667,1908.2,1908.1,45.05599]
[1742184816063,6.1667,1908.2,1908.1,41.84819]
[1742184817265,7.21489,1908.2,1908.1,40.8]
[1742184817764,6.1667,1908.2,1908.1,41.84824]
[1742184818752,6.1657,1908.2,1908.1,41.84824]
[1742184818957,4.7947,1908.2,1908.1,41.84824]
[1742184819164,4.7947,1908.2,1908.1,43.26484]
[1742184819768,4.7937,1908.2,1908.1,43.26484]
[1742184822265,6.1419,1908.2,1908.1,46.47264]
[1742184822667,6.1419,1908.2,1908.1,43.26484]
[1742184826872,7.19009,1908.2,1908.1,42.2166]
[1742184827466,6.1419,1908.2,1908.1,40.8]
[1742184827671,7.19009,1908.2,1908.1,40.8]
[1742184828171,6.1419,1908.2,1908.1,41.84824]
[1742184832976,7.19009,1908.2,1908.1,40.8]
[1742184833376,6.1419,1908.2,1908.1,40.8]
[1742184833567,7.19009,1908.2,1908.1,40.8]
[1742184834282,6.1419,1908.2,1908.1,40.8]
[1742184834485,7.19009,1908.2,1908.1,40.8]
[1742184839077,6.1419,1908.2,1908.1,41.84824]
[1742184852295,7.19009,1908.2,1908.1,40.8]
[1742184852693,7.19009,1908.2,1908.1,42.1593]
[1742184853195,6.1419,1908.2,1908.1,42.1593]
[1742184853388,7.19009,1908.2,1908.1,42.1593]
[1742184853586,4.45319,1908.2,1908.1,40.8]
[1742184853783,3.405,1908.2,1908.1,40.8]
[1742184854291,3.405,1908.2,1908.1,41.84824]
[1742184854494,3.405,1908.2,1908.1,40.8]
[1742184854989,4.45319,1908.2,1908.1,40.8]
[1742184857594,3.405,1908.2,1908.1,41.84824]
[1742184859800,1.04812,1908.4,1908.1,41.84824]
[1742184860094,3.373,1908.3,1908.1,41.84824]
[1742184860891,3.373,1908.3,1908.2,1.04819]
[1742184861192,3.373,1908.3,1908.1,40.8]
[1742184861395,3.373,1908.3,1908.2,1.04819]
[1742184862887,4.7446,1908.3,1908.2,2.50989]
[1742184864486,1.01839418,1908.4,1908.3,1.04813]
[1742184864691,4.39039418,1908.4,1908.3,3.86443]
[1742184864996,3.372,1908.4,1908.3,3.86443]
[1742184865496,30.391,1908.5,1908.4,1.04808]
[1742184865696,33.766,1908.5,1908.4,2.50978]
[1742184865895,30.391,1908.5,1908.4,2.50978]
[1742184866395,33.765,1908.5,1908.4,2.50978]
[1742184866997,33.764,1908.5,1908.4,2.50978]
[1742184867195,30.391,1908.5,1908.4,2.50978]
[1742184867395,33.764,1908.5,1908.4,2.50978]
[1742184868696,35.1592,1908.5,1908.4,2.50978]
[1742184869593,36.20722,1908.5,1908.4,1.4617]
[1742184869797,35.1592,1908.5,1908.4,2.50978]
[1742184869998,36.20722,1908.5,1908.4,1.4617]
[1742184870193,35.862,1908.5,1908.1,44.6895]
[1742184870399,1.4101,1908.4,1908.3,1.04811]
[1742184876394,33.764,1908.5,1908.4,1.04808]
[1742184876899,35.1889,1908.5,1908.4,1.04808]
[1742184879800,36.6211,1908.5,1908.4,1.04808]
[1742184881011,36.6211,1908.5,1908.4,2.44958]
[1742184882511,35.8967,1908.5,1908.4,2.44958]
[1742184882809,35.1889,1908.5,1908.4,2.44958]
[1742184883012,33.764,1908.5,1908.4,3.82038]
[1742184884013,33.756,1908.5,1908.4,3.82038]
[1742184889717,30.391,1908.5,1908.4,3.82038]
[1742184889918,33.756,1908.5,1908.4,3.82038]
[1742184891321,30.391,1908.5,1908.4,3.82038]
[1742184891521,33.756,1908.5,1908.4,3.82038]
[1742184891727,3.365,1908.5,1908.4,3.82038]
[1742184892228,1.3904,1908.6,1908.5,1.04802]
[1742184892526,4.7554,1908.6,1908.5,5.59662]
[1742184893029,1.3904,1908.6,1908.5,5.59662]
[1742184893328,4.7554,1908.6,1908.5,5.59662]
[1742184898228,3.364,1908.7,1908.5,4.5486]
[1742184898531,3.364,1908.7,1908.6,2.49387]
[1742184899133,3.364,1908.7,1908.6,43.29387]
[1742184901529,5.4142,1908.7,1908.6,43.29387]
[1742184903527,5.4142,1908.7,1908.6,41.84797]
[1742184908241,5.4142,1908.7,1908.6,43.26327]
[1742184922835,3.364,1908.9,1908.7,1.04791]
[1742184923041,31.7934,1909.1,1909.0,1.04775]
[1742184923238,34.4418,1909.1,1909.0,1.04775]
[1742184923943,34.4418,1909.1,1909.0,2.37615]
[1742184923944,30.386,1909.1,1909.0,2.37615]
[1742184924348,3.37185649,1909.2,1909.1,1.04769]
[1742184924544,3.37185649,1909.2,1909.1,5.58389]
[1742184925045,3.37185649,1909.2,1909.1,46.38389]
[1742184930251,0.00785649,1909.2,1909.1,46.38389]
[1742184935355,0.71385649,1909.2,1909.1,46.38389]
[1742184936649,0.71385649,1909.2,1909.1,45.3362]
[1742184936854,1.76149649,1909.2,1909.1,40.8]
[1742184937249,1.04775,1909.0,1908.9,0.00785649]
[1742184937449,3.363,1909.0,1908.5,1.3721]
[1742184937652,1.0479,1908.8,1908.5,2.4201]
[1742184937853,5.5299,1908.7,1908.5,1.3721]
[1742184938053,1.4519,1908.6,1908.5,2.42007]
[1742184938257,1.4519,1908.6,1908.5,43.22007]
[1742184940650,2.1245,1908.6,1908.5,43.22007]
[1742184941255,2.1245,1908.6,1908.5,42.1721]
[1742184942552,2.1245,1908.6,1908.5,40.8]
[1742184942751,3.17247,1908.6,1908.5,40.8]
[1742184943254,0.00785649,1909.2,1909.1,1.04769]
[1742184943451,0.00785649,1909.2,1909.1,4.25549]
[1742184943850,0.00785649,1909.2,1909.1,45.05549]
[1742184944652,0.00785649,1909.2,1909.1,46.50059]
[1742184952355,0.00785649,1909.2,1909.1,47.23019]
[1742184954567,0.6663,1909.5,1909.4,1.04753]
[1742184954760,4.0293,1909.5,1909.4,4.25533]
[1742184957064,0.6663,1909.5,1909.4,4.25533]
[1742184957270,3.36985649,1909.6,1909.5,1.04747]
[1742184957459,3.36985649,1909.6,1909.5,2.42587]
[1742184960066,0.00785649,1909.6,1909.5,2.42587]
[1742184968166,1.37185649,1909.6,1909.5,2.42587]
[1742184968473,0.00785649,1909.6,1909.5,2.42587]
[1742184969471,1.45225649,1909.6,1909.5,2.42587]
[1742184969672,2.14975649,1909.6,1909.5,2.42587]
[1742184970870,3.19717649,1909.6,1909.4,4.26316649]
[1742184971175,1.4444,1909.5,1909.4,0.00785649]
[1742184971572,0.70535649,1909.6,1909.5,1.04747]
[1742184971770,0.00785649,1909.6,1909.5,1.73267]
[1742184971969,0.00785649,1909.6,1909.5,3.14537]
[1742184972471,1.45315649,1909.6,1909.5,3.14537]
[1742184972668,1.45315649,1909.6,1909.5,43.94537]
[1742184976073,0.00785649,1909.6,1909.5,43.94537]
[1742184977275,3.362,1910.0,1909.9,1.04725]
[1742184977981,4.7369,1910.0,1909.9,43.29215]
[1742184979579,4.7369,1910.0,1909.9,41.84725]
[1742184981581,4.7369,1910.0,1909.9,43.30875]
[1742184982785,1.3749,1910.0,1909.9,43.30875]
[1742184986792,4.7359,1910.0,1909.9,43.30875]
[1742184987294,30.365,1910.4,1910.3,1.04703]
[1742184987484,35.34676435,1910.4,1910.3,1.04703]
[1742184987685,34.4269,1910.4,1910.3,1.04703]
[1742184987888,34.4269,1910.4,1910.3,41.84703]
[1742184988693,35.7549,1910.4,1910.3,41.84703]
[1742184990192,35.7549,1910.4,1910.3,40.8]
[1742184990689,36.4144,1910.4,1910.3,40.8]
[1742184990908,37.46138,1910.4,1910.3,40.8]
[1742184993289,36.4144,1910.4,1910.3,41.84703]
[1742184993489,36.4144,1910.4,1910.3,42.189]
[1742184993696,37.46138,1910.4,1910.3,42.189]
[1742184994198,37.46138,1910.4,1910.3,40.8]
[1742184996799,36.4144,1910.4,1910.3,40.8]
[1742184997002,36.4144,1910.4,1910.3,42.1598]
[1742184997195,37.46138,1910.4,1910.3,42.1598]
[1742184997800,37.46138,1910.4,1910.3,43.20683]
[1742184998000,37.46138,1910.4,1910.3,42.1598]
[1742184998591,36.4144,1910.4,1910.3,43.20683]
[1742185002987,33.0534,1910.4,1910.3,43.20683]
[1742185003203,36.4144,1910.4,1910.3,43.20683]
[1742185005305,37.33438291,1910.4,1910.3,43.20683]
[1742185007706,36.4144,1910.4,1910.3,43.20683]
[1742185008103,37.33455748,1910.4,1910.3,43.20683]
[1742185008408,34.64615748,1910.4,1910.3,43.20683]
[1742185008611,33.726,1910.4,1910.3,47.12493]
[1742185009403,24.90716947,1910.4,1910.3,47.12493]
[1742185009600,0.00785649,1910.5,1910.3,46.0779]
[1742185009805,0.00785649,1910.5,1910.4,2.36938]
[1742185020925,0.00785649,1910.5,1910.4,1.3224]
[1742185021219,2.37588649,1910.5,1910.4,1.3224]
[1742185022415,1.32895649,1910.5,1910.4,2.36938]
[1742185024317,1.32895649,1910.5,1910.4,1.3224]
[1742185024518,1.32895649,1910.5,1910.4,2.36938]
[1742185025623,1.32895649,1910.5,1910.3,40.8]
[1742185025624,1.04698,1910.4,1910.3,40.8]
[1742185025809,1.77538,1910.4,1910.3,42.1286]
[1742185026308,1.77538,1910.4,1910.3,40.8]
[1742185027112,7.48318,1910.4,1910.3,40.8]
[1742185027417,2.61759,1910.3,1909.7,5.63693]
[1742185027616,1.04724,1910.0,1909.9,1.3517]
[1742185028434,3.11754,1910.0,1909.9,42.1517]
[1742185029221,2.0703,1910.0,1909.9,43.19895]
[1742185030718,0.6691,1910.1,1910.0,1.0472]
[1742185031025,2.0729,1910.1,1910.0,2.4598]
[1742185031526,2.0729,1910.1,1910.0,3.1644]
[1742185032226,5.4329,1910.1,1910.0,3.1644]
[1742185033719,5.4329,1910.1,1910.0,2.4598]
[1742185033921,5.4329,1910.1,1910.0,1.4126]
[1742185034423,6.48004,1910.1,1910.0,1.4126]
[1742185034627,6.48004,1910.1,1909.9,41.84725]
[1742185034821,1.3803,1910.0,1909.9,43.21565]
[1742185035128,1.3803,1910.0,1909.9,41.84725]
[1742185035725,2.4275,1910.0,1909.9,40.8]
[1742185037424,1.3803,1910.0,1909.9,41.84725]
[1742185039026,2.4275,1910.0,1909.9,40.8]
[1742185039623,4.9275,1910.0,1909.9,40.8]
[1742185039824,14.0937981,1910.0,1909.9,40.8]
[1742185040022,10.8859981,1910.0,1909.9,40.8]
[1742185040527,8.3859981,1910.0,1909.9,40.8]
[1742185041129,8.2975,1910.0,1909.9,40.8]
[1742185041325,7.2503,1910.0,1909.9,41.84725]
[1742185041529,8.2975,1910.0,1909.9,40.8]
[1742185046228,8.38598066,1910.0,1909.9,40.8]
[1742185047531,8.38597219,1910.0,1909.9,40.8]
[1742185048039,14.09377219,1910.0,1909.9,40.8]
[1742185048232,14.51598622,1910.0,1909.9,40.8]
[1742185048441,15.43391113,1910.0,1909.9,40.8]
[1742185049332,16.36015866,1910.0,1909.9,40.8]
[1742185049633,16.44863815,1910.0,1909.9,40.8]
[1742185050029,15.40143815,1910.0,1909.4,0.00785649]
[1742185050230,1.04747,1909.5,1909.4,0.00785649]
[1742185050425,4.40847,1909.5,1909.4,0.00785649]
[1742185050626,7.20947,1909.5,1909.4,0.00785649]
[1742185051129,6.162,1909.5,1909.4,40.80785649]
[1742185051330,7.20947,1909.5,1909.4,40.80785649]
[1742185051634,7.20947,1909.5,1909.4,42.25205649]
[1742185060435,37.57947,1909.5,1909.4,42.25205649]
[1742185060737,36.532,1909.5,1909.4,42.25205649]
[1742185060944,37.57947,1909.5,1909.4,42.25205649]
[1742185061744,34.21847,1909.5,1909.4,42.25205649]
[1742185061943,37.57947,1909.5,1909.4,42.25205649]
[1742185062144,36.90457,1909.5,1909.4,42.25205649]
[1742185062843,34.77847,1909.5,1909.4,42.25205649]
[1742185063146,33.731,1909.5,1909.4,43.29958649]
[1742185063445,33.731,1909.5,1909.4,42.25205649]
[1742185064046,34.77847,1909.5,1909.4,42.95795649]
[1742185066144,34.77847,1909.5,1909.4,42.25205649]
[1742185067048,36.14327,1909.5,1909.4,42.25205649]
[1742185067545,36.14327,1909.5,1909.4,40.80785649]
[1742185067546,37.15011833,1909.5,1909.4,40.80785649]
[1742185067937,37.15011606,1909.5,1909.4,40.80785649]
[1742185068137,1.04785,1908.9,1908.6,8.58950715]
[1742185068448,3.361,1908.8,1908.7,2.43491]
[1742185069149,3.361,1908.8,1908.7,43.23491]
[1742185069346,3.361,1908.8,1908.7,44.61731]
[1742185069848,4.40886,1908.8,1908.7,43.5694]
[1742185070551,3.361,1908.8,1908.7,43.5694]
[1742185070752,3.361,1908.8,1908.7,44.61731]
[1742185071047,3.361,1908.8,1908.7,43.5694]
[1742185071945,3.361,1908.8,1908.7,44.61731]
[1742185072742,3.361,1908.8,1908.7,43.5694]
[1742185072943,3.361,1908.8,1908.7,44.61731]
[1742185073139,3.361,1908.8,1908.7,47.82511]
[1742185086558,3.361,1908.8,1908.7,46.43811]
[1742185086750,4.0811,1908.8,1908.7,46.43811]
[1742185086954,4.0811,1908.8,1908.7,47.11431]
[1742185087561,4.0811,1908.8,1908.7,46.43811]
[1742185088055,5.4124,1908.8,1908.7,46.43811]
[1742185089263,5.4124,1908.8,1908.7,43.23031]
[1742185091664,3.361,1908.8,1908.7,47.14251]
[1742185095168,4.40886,1908.8,1908.7,45.3902]
[1742185095365,4.7362,1908.8,1908.7,46.43811]
[1742185095976,5.78406,1908.8,1908.7,45.3902]
[1742185096468,4.7362,1908.8,1908.7,45.3902]
[1742185096763,5.78406,1908.8,1908.7,45.3902]
[1742185096970,4.7362,1908.8,1908.7,45.3902]
[1742185097162,5.78406,1908.8,1908.7,45.3902]
[1742185097571,4.7362,1908.8,1908.7,45.3902]
[1742185097770,4.7362,1908.8,1908.7,46.43811]
[1742185098875,4.7362,1908.8,1908.7,42.1824]
[1742185099067,4.7362,1908.8,1908.7,43.23031]
[1742185099978,5.78406,1908.8,1908.7,42.1824]
[1742185101081,5.78406,1908.8,1908.7,40.8]
[1742185104284,11.65406,1908.8,1908.7,40.8]
[1742185105577,11.65406,1908.8,1908.7,42.2122]
[1742185105881,11.65506,1908.8,1908.7,42.2122]
[1742185106682,11.65506,1908.8,1908.7,40.8]
[1742185110385,12.57426255,1908.8,1908.7,40.8]
[1742185110887,12.66263631,1908.8,1908.7,40.8]
[1742185111492,12.57426255,1908.8,1908.7,40.8]
[1742185114897,12.66265392,1908.8,1908.7,40.8]
[1742185115797,11.61479392,1908.8,1908.6,0.00785649]
[1742185116091,8.07174143,1908.7,1908.6,0.00785649]
[1742185116299,7.98330348,1908.7,1908.6,40.80785649]
[1742185116593,4.8639455,1908.7,1908.6,40.80785649]
[1742185116796,4.77550348,1908.7,1908.6,40.80785649]
[1742185119502,3.72759348,1908.7,1908.6,40.80785649]
[1742185119701,3.362,1908.7,1908.6,41.85582649]
[1742185119894,3.362,1908.7,1908.6,42.57482649]
[1742185120199,3.362,1908.7,1908.6,44.03542649]
[1742185120602,5.87,1908.8,1908.7,1.04791]
[1742185120801,9.232,1908.8,1908.7,2.50851]
[1742185121195,10.27986,1908.8,1908.7,1.4606]
[1742185121397,12.34396,1908.8,1908.7,1.4606]
[1742185121590,13.93118175,1908.8,1908.7,1.4606]
[1742185127802,14.01963333,1908.8,1908.7,1.4606]
[1742185128403,15.0374237,1908.8,1908.7,1.4606]
[1742185130097,15.7362519,1908.8,1908.7,1.4606]
[1742185130503,15.0374237,1908.8,1908.7,1.4606]
[1742185131603,15.73642413,1908.8,1908.7,1.4606]
[1742185131805,15.03746809,1908.8,1908.7,1.4606]
[1742185132904,15.7364351,1908.8,1908.7,1.4606]
[1742185133708,1.04791,1908.7,1908.6,40.80785649]
[1742185133901,3.38942772,1908.7,1908.6,40.80785649]
[1742185134412,4.40721809,1908.7,1908.6,40.80785649]
[1742185135008,7.61501809,1908.7,1908.6,40.80785649]
[1742185135602,7.6150229,1908.7,1908.6,40.80785649]
[1742185136712,8.02544776,1908.7,1908.6,40.80785649]
[1742185137313,17.09438022,1908.7,1908.6,40.80785649]
[1742185137606,17.09437449,1908.7,1908.6,40.80785649]
[1742185139011,14.59437449,1908.7,1908.6,40.80785649]
[1742185139710,10.27721717,1908.7,1908.6,40.80785649]
[1742185140307,10.27721717,1908.7,1908.6,42.22245649]
[1742185140906,10.27722394,1908.7,1908.6,42.22245649]
[1742185142314,7.92663357,1908.7,1908.6,42.22245649]
[1742185142511,7.92663157,1908.7,1908.6,42.22245649]
[1742185142715,7.83813175,1908.7,1908.6,42.22245649]
[1742185143211,9.232,1908.7,1908.6,42.22245649]
[1742185143415,11.20081739,1908.7,1908.6,42.22245649]
[1742185144415,11.92491739,1908.7,1908.6,42.22245649]
[1742185146608,11.20081739,1908.7,1908.6,42.22245649]
[1742185146809,10.15290739,1908.7,1908.6,42.22245649]
[1742185147011,7.83881739,1908.7,1908.6,42.22245649]
[1742185147308,11.20081739,1908.7,1908.6,42.22245649]
[1742185147509,11.89291739,1908.7,1908.6,42.22245649]
[1742185148117,6.02291739,1908.7,1908.6,42.22245649]
[1742185148516,7.54114877,1908.7,1908.6,42.22245649]
[1742185149420,7.45261739,1908.7,1908.6,42.22245649]
[1742185149817,5.33081739,1908.7,1908.6,42.22245649]
[1742185152821,4.28290739,1908.7,1908.6,42.22245649]
[1742185153021,3.362,1908.7,1908.6,42.22245649]
[1742185153412,5.33129479,1908.7,1908.6,42.22245649]
[1742185153813,4.28338479,1908.7,1908.6,42.22245649]
[1742185154014,3.362,1908.7,1908.6,42.22245649]
[1742185154213,4.40991,1908.7,1908.6,42.22245649]
[1742185154718,3.362,1908.7,1908.6,42.22245649]
[1742185155420,5.87,1908.8,1908.6,42.22245649]
[1742185155622,5.87,1908.8,1908.7,1.3779]
[1742185155818,9.232,1908.8,1908.7,2.0773]
[1742185156514,4.28341839,1908.8,1908.7,2.0773]
[1742185156922,4.28341839,1908.8,1908.7,3.12521]
[1742185157118,3.362,1908.8,1908.7,2.0773]
[1742185157325,31.43566649,1908.9,1908.7,2.0773]
[1742185157515,31.43566649,1908.9,1908.8,2.0665]
[1742185157715,35.80749588,1908.9,1908.8,2.0665]
[1742185157916,36.8258377,1908.9,1908.8,2.0665]
[1742185158327,32.4160277,1908.9,1908.8,2.0665]
[1742185158520,34.76819831,1908.9,1908.8,3.11436]
[1742185158716,33.74985649,1908.9,1908.8,3.11436]
[1742185159222,33.74985649,1908.9,1908.8,5.61436]
[1742185160328,33.74985649,1908.9,1908.8,3.11436]
[1742185170133,33.74885649,1908.9,1908.8,3.11436]
[1742185170835,27.56285649,1908.9,1908.8,3.11436]
[1742185171536,27.56285649,1908.9,1908.8,43.91436]
[1742185171737,1.3251,1909.3,1909.2,1.04764]
[1742185171936,4.6861,1909.3,1909.2,1.04764]
[1742185172637,1.3251,1909.3,1909.2,41.84764]
[1742185172840,4.6861,1909.3,1909.2,43.30874]
[1742185173536,5.73368,1909.3,1909.2,40.8]
[1742185175238,4.6861,1909.3,1909.2,40.8]
[1742185175641,4.6861,1909.3,1909.2,42.2611]
[1742185176340,5.73368,1909.3,1909.2,40.8]
[1742185176934,4.6861,1909.3,1909.2,43.26584]
[1742185177139,4.6861,1909.3,1909.2,42.2182]
[1742185178039,4.6861,1909.3,1909.2,43.26584]
[1742185178243,4.6861,1909.3,1909.2,42.2182]
[1742185180243,4.6861,1909.3,1909.2,43.26584]
[1742185180442,4.6851,1909.3,1909.2,43.26584]
[1742185181343,3.36,1909.3,1909.2,43.26584]
[1742185181640,0.00785649,1909.4,1909.3,1.04758]
[1742185181837,3.36785649,1909.4,1909.3,2.41328]
[1742185182038,4.82895649,1909.4,1909.3,2.41328]
[1742185189845,3.36785649,1909.4,1909.3,2.41328]
[1742185195151,4.82015649,1909.4,1909.3,2.41328]
[1742185195749,3.36785649,1909.4,1909.3,2.41328]
[1742185197154,4.78145649,1909.4,1909.3,2.41328]
[1742185197951,3.36785649,1909.4,1909.3,2.41328]
[1742185200451,4.77205649,1909.4,1909.3,2.41328]
[1742185201354,3.36785649,1909.4,1909.3,2.41328]
[1742185203553,3.36785649,1909.4,1909.3,5.62108]
[1742185203949,4.73975649,1909.4,1909.3,5.62108]
[1742185204460,3.36785649,1909.4,1909.3,5.62108]
[1742185205750,0.00785649,1909.4,1909.3,5.62108]
[1742185206150,0.00785649,1909.4,1909.3,8.12108]
[1742185207358,0.00785649,1909.4,1909.3,5.62108]
[1742185209357,3.36685649,1909.4,1909.3,5.62108]
[1742185209756,0.00785649,1909.4,1909.3,5.62108]
[1742185213162,1.42815649,1909.4,1909.3,5.62108]
[1742185213352,2.15725649,1909.4,1909.3,5.62108]
[1742185215662,0.00785649,1909.4,1909.3,8.12108]
[1742185215861,0.00785649,1909.4,1909.3,5.62108]
[1742185216061,0.00785649,1909.4,1909.3,46.42108]
[1742185217560,0.00785649,1909.4,1909.3,48.92108]
[1742185218761,0.00785649,1909.4,1909.3,46.42108]
[1742185220456,0.00785649,1909.4,1909.3,48.92108]
[1742185220857,0.6908,1909.7,1909.3,48.92108]
[1742185221058,0.7299,1909.8,1909.7,1.04736]
[1742185221464,2.1751,1909.8,1909.7,2.47296]
[1742185221952,2.1751,1909.8,1909.7,43.27296]
[1742185228367,2.1751,1909.8,1909.7,44.67216]
[1742185231972,0.6996,1910.0,1909.7,44.67216]
[1742185231973,4.6797,1909.9,1909.8,1.04731]
[1742185232274,4.6797,1909.9,1909.8,5.60731]
[1742185232661,4.6797,1909.9,1909.8,46.40731]
[1742185235264,1.3207,1909.9,1909.8,46.40731]
[1742185235468,4.7575,1910.0,1909.9,1.04725]
[1742185235667,2.7602,1910.0,1909.9,2.50235]
[1742185236074,1.3607,1910.0,1909.9,43.30235]
[1742185236276,30.37,1910.1,1910.0,1.0472]
[1742185236471,30.37,1910.1,1910.0,5.7101]
[1742185236776,2.7202,1910.4,1910.3,1.04703]
[1742185236967,4.7175,1910.4,1910.3,1.04703]
[1742185237468,1.3595,1910.4,1910.3,2.50653]
[1742185237666,4.7175,1910.4,1910.3,43.30653]
[1742185238081,30.362,1910.7,1910.6,1.04687]
[1742185238273,34.431,1910.7,1910.6,1.04687]
[1742185238674,34.431,1910.7,1910.6,41.84687]
[1742185239172,34.431,1910.7,1910.6,40.8]
[1742185239376,38.68562,1910.7,1910.6,40.8]
[1742185239680,39.69235537,1910.7,1910.6,40.8]
[1742185240370,42.19235537,1910.7,1910.6,40.8]
[1742185240578,41.14553537,1910.7,1910.3,3.2078]
[1742185240769,1.04695,1910.5,1910.3,3.2078]
[1742185240969,4.0623,1910.4,1910.3,3.2078]
[1742185241976,5.10928,1910.4,1910.3,3.2078]
[1742185242677,4.0623,1910.4,1910.3,4.25483]
[1742185244375,1.04707,1910.3,1910.0,1.04715]
[1742185244573,1.04709,1910.2,1910.0,1.04715]
[1742185244773,3.361,1910.1,1910.0,1.04715]
[1742185244976,4.0228,1910.1,1910.0,1.04715]
[1742185245680,4.0228,1910.1,1909.9,2.40743]
[1742185245883,0.6733,1910.0,1909.9,2.40743]
[1742185246686,0.6733,1910.0,1909.9,43.20743]
[1742185247682,0.6733,1910.0,1909.9,42.1602]
[1742185248077,0.6733,1910.0,1909.9,43.20745]
[1742185251088,2.0712,1910.0,1909.9,43.20745]
[1742185253391,0.6618,1910.1,1910.0,1.0472]
[1742185253695,4.0198,1910.1,1910.0,5.5797]
[1742185254093,5.4568,1910.1,1910.0,5.5797]
[1742185257793,0.7049,1910.2,1910.1,1.04714]
[1742185257990,3.358,1910.2,1910.1,2.47104]
[1742185258488,5.4091,1910.2,1910.1,2.47104]
[1742185259795,6.45619,1910.2,1910.1,1.4239]
[1742185260196,6.45619,1910.2,1910.0,4.25498]
[1742185260497,1.3321,1910.1,1910.0,5.67888]
[1742185260697,1.3321,1910.1,1910.0,4.25498]
[1742185264100,4.077,1910.2,1910.1,1.04714]
[1742185264398,5.4825,1910.2,1910.1,1.04714]
[1742185265299,4.7635,1910.2,1910.1,1.04714]
[1742185265697,4.7635,1910.2,1910.0,4.6128]
[1742185265698,5.87,1910.4,1910.3,1.04703]
[1742185265893,3.358,1910.4,1910.2,3.2078]
[1742185266094,3.358,1910.4,1910.3,1.04703]
[1742185266293,3.358,1910.4,1910.3,2.45203]
[1742185266502,0.6864,1910.6,1910.3,1.405]
[1742185266703,3.358,1910.5,1910.4,1.04698]
[1742185268901,3.358,1910.5,1910.4,4.25478]
[1742185269995,32.5033,1910.7,1910.6,1.04687]
[1742185270198,34.4064,1910.7,1910.6,1.04687]
[1742185270700,35.45322,1910.7,1910.5,1.04689]
[1742185271103,35.45322,1910.7,1910.6,1.3223]
[1742185271702,34.4064,1910.7,1910.6,2.36917]
[1742185280900,35.45322,1910.7,1910.6,1.3223]
[1742185281101,36.78082,1910.7,1910.6,1.3223]
[1742185282204,1.04697,1910.5,1910.2,3.2078]
[1742185282409,5.8179,1910.4,1910.2,5.66286]
[1742185282601,3.8503,1910.4,1910.3,1.408]
[1742185282800,5.8179,1910.4,1910.3,1.408]
[1742185283197,5.81788,1910.4,1910.3,1.408]
[1742185283602,5.81788,1910.4,1910.2,3.2078]